Cogmind - Beta 16 @@@ ROGUE MODE // 2026.02.08 @ 03:55:13 Player: %41THX3142 Result: Destroyed by S-27 Virus with Autogun Performance ------------- Evolutions (6) 3000 Regions Visited (12) 2400 Robots Destroyed (64) 320 Value Destroyed (1092) 1092 Prototype IDs (19) 380 Alien Tech Used (0) 0 Bonus (146) 146 TOTAL SCORE: 7338 Bonus ------- Met Data Miner 300 Friendly Fire -154 Cogmind --------- Core Integrity 0/1150 Matter 300/300 Energy 99/100 System Corruption 0% Temperature Cool (0) Movement Core (50) Location -4/Upper Caves Parts ------- > --- POWER (4) -------- (None) > --- PROPULSION (5) --- (None) > --- UTILITY (8) ------ (None) > --- WEAPON (2) ------- (None) > --- INVENTORY (5) ---- Fusion Compressor Compact Matter Pod (150) Improved Field Recycling Unit (24) Cooled Pulse Rifle Chainsword Peak State ------------ > --- POWER ------------ Micro Nuclear Core > --- PROPULSION ------- Improved Flight Unit Improved Flight Unit Improved Flight Unit Nuclear Pulse Thruster Cooled Cesium-ion Thruster > --- UTILITY ---------- Medium Storage Unit Compact Matter Pod Advanced Visual Processing Unit Improved Sensor Array Kinecellerator Improved Propulsion Shielding System Shield > --- WEAPON ----------- Scythe Chainsword > --- INVENTORY -------- Light Deuterium Engine Light Fission Core Fusion Compressor Improved Light Armor Plating Force Field Hacking Suite Improved System Restoration Module Cooled Pulse Rifle Improved Heavy Machine Gun KE Penetrator [Rating: 55] Favorites ----------- Power Light Ion Engine Engine Light Ion Engine Power Core Fusion Compressor Propulsion Improved Flight Unit Wheel Wheel Flight Unit Improved Flight Unit Utility Medium Storage Unit Device Weight Redist. System Storage Medium Storage Unit Processor Advanced Visual Processing Unit Hackware System Shield Protection Backup Plating I Weapon Light Assault Rifle Energy Gun Small Laser Energy Cannon Particle Cannon Ballistic Gun Light Assault Rifle Ballistic Cannon Light Cannon Impact Weapon Great Maul Slashing Weapon Chainsword Build | -11 -10 -9 -8 -7 -6 -6 -6 -5 -5 -4 -4 -4 ------- Run | Yrd Mat Mat Mat Fac Fac Low Dat Pro Fac Fac Upp Upp Slots Evolved 12 | . . 2 2 2 2 . . . 2 2 . . Power 3 | . . . 1 1 . . . . . 1 . . Propulsion 3 | . . 2 . . 1 . . . . . . . Utility 6 | . . . 1 1 1 . . . 2 1 . . Weapon . | . . . . . . . . . . . . . Parts Attached 89 | 7 11 28 8 6 7 . . . 16 2 4 . Power 15 | 1 1 4 1 3 1 . . . 3 . 1 . Engine 12 | 1 1 4 1 3 . . . . 2 . . . Core 3 | . . . . . 1 . . . 1 . 1 . Reactor . | . . . . . . . . . . . . . Propulsion 23 | 2 2 11 3 . 2 . . . 1 1 1 . Treads . | . . . . . . . . . . . . . Leg . | . . . . . . . . . . . . . Wheel 4 | 2 2 . . . . . . . . . . . Hover . | . . . . . . . . . . . . . Flight 19 | . . 11 3 . 2 . . . 1 1 1 . Utility 25 | 2 3 3 1 2 2 . . . 10 1 1 . Device 13 | 1 . 2 1 1 1 . . . 7 . . . Storage 4 | 1 1 . . . . . . . 1 . 1 . Processor 1 | . . . . 1 . . . . . . . . Hackware 2 | . . . . . . . . . 1 1 . . Protection 5 | . 2 1 . . 1 . . . 1 . . . Artifact . | . . . . . . . . . . . . . Weapon 26 | 2 5 10 3 1 2 . . . 2 . 1 . Energy Gun 6 | . 2 3 1 . . . . . . . . . Energy Cannon 2 | . . 2 . . . . . . . . . . Ballistic Gun 12 | 2 3 2 1 1 2 . . . . . 1 . Ballistic Cannon 1 | . . 1 . . . . . . . . . . Launcher . | . . . . . . . . . . . . . Special Weapon . | . . . . . . . . . . . . . Impact Weapon 2 | . . 2 . . . . . . . . . . Slashing Weapon 3 | . . . 1 . . . . . 2 . . . Piercing Weapon . | . . . . . . . . . . . . . Special Melee Weapon . | . . . . . . . . . . . . . Unidentified Prototypes 8 | . . 3 2 . 2 . . . 1 . . . Parts Lost 36 | . 5 7 2 1 . . . 1 14 2 . 4 Power 8 | . 1 2 1 1 . . . 1 1 . . 1 Propulsion 12 | . 1 2 1 . . . . . 5 1 . 2 Utility 12 | . 2 1 . . . . . . 7 1 . 1 Weapon 4 | . 1 2 . . . . . . 1 . . . Highest Loss Streak 5 | . 4 4 2 1 . . . 1 5 2 . 3 To Critical Strikes . | . . . . . . . . . . . . . Average Backups 7 | . 6 9 9 9 9 10 10 10 9 4 4 5 Power 1 | . 1 1 . . . 1 1 1 2 . 1 1 Propulsion 1 | . 3 2 2 1 . . . . . 1 . . Utility 2 | . . 2 3 4 5 6 6 6 4 2 2 2 Weapon 2 | . 1 3 3 3 3 3 3 3 2 1 . 1 Tool/Special . | . . . . . . . . . . . . . Unused Backups 19 | . 3 4 3 . 1 . . . 4 2 . 2 Power 8 | . 2 3 . . . . . . 2 . . 1 Propulsion 4 | . . 1 1 . . . . . . 2 . . Utility 3 | . . . 1 . . . . . 1 . . 1 Weapon 4 | . 1 . 1 . 1 . . . 1 . . . Tool/Special . | . . . . . . . . . . . . . Average Slot Usage (%) 75 | . 96 95 87 91 89 93 93 87 75 19 24 10 Engine 8 | . 13 10 9 15 9 6 6 1 4 . . . Wheel 6 | . 27 . . . . . . . . . . . Flight 19 | . . 42 35 29 33 33 33 33 26 5 6 2 Device 6 | . 7 1 16 15 16 13 13 13 8 . . . Storage 8 | . 14 10 9 7 6 6 6 6 7 . 2 . Processor 2 | . . . . 6 6 6 6 6 5 5 5 5 Protection 3 | . 4 8 . . . 6 6 6 5 . . . Energy Gun 3 | . 6 7 . . . . . . . . . . Ballistic Gun 9 | . 21 10 9 7 6 13 13 13 1 . 1 . Slashing Weapon 2 | . . . 4 7 5 . . . 4 5 5 . Peak Build Rating 55 | 7 8 23 33 41 49 49 49 49 55 15 32 32 Average Rating 22 | 5 7 16 27 36 43 49 49 48 45 13 23 5 On Entrance 26 | . 7 8 22 25 38 49 49 49 48 7 15 32 Avg Prop Armor Cover (%) . | . . . . . . . . . . . . . Naked Turns 7 | . . . . . . . . . . . . 7 Heaviest Build 37 | 14 20 25 27 35 30 30 30 30 37 3 13 13 Greatest Support 32 | 20 20 26 26 26 32 32 32 32 32 7 15 15 Greatest Overweight (x) 2 | . . 2 1 1 . . . . 1 . . . Average Overweight (x) . | . . . . . . . . . . . . . Largest Inventory Capacity 10 | 8 10 10 10 10 10 10 10 10 10 5 5 5 Average Capacity 8 | 6 9 9 10 10 10 10 10 10 9 5 5 5 Most Carried 10 | 2 10 10 10 10 10 10 10 10 10 5 5 5 Average Carried 7 | . 6 9 9 9 9 10 10 9 9 4 4 5 Final Capacity 10 | 8 10 10 10 10 10 10 10 10 5 5 5 5 Final Carried 10 | 2 10 10 9 10 10 10 10 10 5 4 5 5 Class Distribution -------------------- 56% | Mutant 40% | Sprinter Dominant Class ---------------- Mutant | -10/Materials Sprinter | -9/Materials Sprinter | -8/Materials Mutant | -7/Factory Sprinter | -6/Factory Sprinter | -6/Lower Caves Sprinter | -6/Data Miner Sprinter | -5/Proximity Caves Sprinter | -5/Factory Mutant | -4/Factory Mutant | -4/Upper Caves Mutant | -4/Upper Caves Resources | -11 -10 -9 -8 -7 -6 -6 -6 -5 -5 -4 -4 -4 ----------- Run | Yrd Mat Mat Mat Fac Fac Low Dat Pro Fac Fac Upp Upp Matter Collected 2795 | 264 276 499 188 217 63 . . 149 639 20 480 . Remotely . | . . . . . . . . . . . . . Salvage Created 2042 | 21 453 505 156 292 43 . . 48 400 39 85 . Parts 130 | 3 37 37 6 13 4 . . 7 20 2 1 . Haulers Intercepted 7 | . . 2 2 1 . . . . 2 . . . Recyclers Shooed 3 | . . 2 . 1 . . . . . . . . Parts Field Recycled 7 | . . . . . . . . . 7 . . . Retrieved Matter 46 | . . . . . . . . . 46 . . . Parts Self-Destructed 12 | . . . . . . . . 4 . . 4 4 Prevented 2 | . . . . . . . . 2 . . . . Parts Restored . | . . . . . . . . . . . . . Kills | -11 -10 -9 -8 -7 -6 -6 -6 -5 -5 -4 -4 -4 ------- Run | Yrd Mat Mat Mat Fac Fac Low Dat Pro Fac Fac Upp Upp Combat Hostiles Destroyed 34 | . 17 16 . . . . . 1 . . . . Melee 1 | . . . . . . . . 1 . . . . Guns 26 | . 17 9 . . . . . . . . . . Cannons 7 | . . 7 . . . . . . . . . . Classes Destroyed 14 | 1 3 5 1 1 . . . 2 1 . . . Worker 7 | . 1 . . . 1 . . . 3 2 . . Builder 3 | . . . . 1 . . . . 2 . . . Tunneler 1 | 1 . . . . . . . . . . . . Hauler 7 | . . 2 2 1 . . . . 2 . . . Recycler 3 | . . 1 . 2 . . . . . . . . Minesweeper 1 | . . . . . . . . 1 . . . . Mechanic 1 | . . . . . . . . . 1 . . . Operator 3 | . . . 1 1 1 . . . . . . . Drone 1 | . . . . . . . . 1 . . . . Watcher 3 | . . 1 1 . . . . . 1 . . . Swarmer 20 | . 10 10 . . . . . . . . . . Grunt 11 | . 7 4 . . . . . . . . . . Duelist 1 | . . 1 . . . . . . . . . . Sentry 1 | . . 1 . . . . . . . . . . Butcher 1 | . . . . . . . . . . . 1 . Best Kill Streak 8 | 1 4 8 2 2 2 . . 2 2 2 . . Combat Bots Only 8 | . 3 8 . . . . . 1 . . . . Max Kills in Single Turn 2 | 1 2 1 1 1 1 . . 1 1 1 1 . Gunslinging 1 | . 1 . . . . . . . . . . . Exploded . | . . . . . . . . . . . . . Melee 1 | . . . . . . . . 1 . . . . Uniques/NPCs Destroyed . | . . . . . . . . . . . . . Combat | -11 -10 -9 -8 -7 -6 -6 -6 -5 -5 -4 -4 -4 -------- Run | Yrd Mat Mat Mat Fac Fac Low Dat Pro Fac Fac Upp Upp Hostile Shots Fired 585 | . 109 142 6 48 52 . . 16 37 47 7 121 Missed 245 | . 22 53 5 22 32 . . 9 15 32 5 50 Hits 340 | . 87 89 1 26 20 . . 7 22 15 2 71 Melee 1 | . . 1 . . . . . . . . . . Projectile 339 | . 87 88 1 26 20 . . 7 22 15 2 71 Critical Strikes 7 | . 1 3 . . 1 . . . 1 1 . . Damage Taken 5198 | . 852 866 186 247 228 . . 286 1069 295 51 1118 Core 2046 | . 141 170 25 85 34 . . 13 416 210 51 901 Absorbed by Shields . | . . . . . . . . . . . . . Redirected to Shielding 134 | . . 7 . . 8 . . 70 49 . . . Regen/Repaired (Parts) 301 | . 124 157 . 20 . . . . . . . . Core Remaining (%) 76 | 100 43 57 95 87 . . . 94 58 . . . Volleys Fired 137 | 1 58 55 . . 2 . . 1 . . 20 . Largest 2 | 2 2 2 . . 2 . . 2 . . 1 . Hottest 86 | 40 60 86 . . 56 . . 56 . . 33 . Shots Fired 252 | 2 115 109 . . 3 . . 3 . . 20 . Gun 218 | 2 115 75 . . 3 . . 3 . . 20 . Cannon 34 | . . 34 . . . . . . . . . . Launcher . | . . . . . . . . . . . . . Special . | . . . . . . . . . . . . . Kinetic 173 | 2 74 85 . . 3 . . 3 . . 6 . Thermal 79 | . 41 24 . . . . . . . . 14 . Explosive . | . . . . . . . . . . . . . Electromagnetic . | . . . . . . . . . . . . . Robot Hit Streak 10 | 1 10 7 . . 1 . . 2 . . 3 . Robot Miss Streak 5 | . 5 3 . . 3 . . 5 . . 2 . Penetration Max . | . . . . . . . . . . . . . Secondary Targets 3 | . 2 1 . . . . . . . . . . Max Gunslinging Chain 1 | . 1 1 . . . . . . . . . . Shots Hit Robots 178 | 1 72 61 6 7 4 . . 1 19 3 4 . Core Hits 84 | 1 32 29 2 4 2 . . 2 8 1 3 . Critical Kills 1 | . . 1 . . . . . . . . . . Critical Parts Destroyed 2 | . 1 . 1 . . . . . . . . . Critical Strikes 4 | . 1 1 1 . . . . . 1 . . . Destroy 2 | . 1 1 . . . . . . . . . . Smash 1 | . . . 1 . . . . . . . . . Sever 1 | . . . . . . . . . 1 . . . Melee Attacks 145 | . . 16 20 15 18 . . . 43 16 17 . Impact 19 | . . 16 3 . . . . . . . . . Slashing 126 | . . . 17 15 18 . . . 43 16 17 . Piercing . | . . . . . . . . . . . . . Sneak Attacks 24 | . . . 3 4 2 . . . 12 2 1 . Combat Hostiles . | . . . . . . . . . . . . . Follow-up Attacks . | . . . . . . . . . . . . . Damage Inflicted 4218 | 11 717 838 419 424 191 . . 154 1153 188 123 . Guns 1269 | 11 710 431 . . 32 . . 16 . . 69 . Cannons 354 | . . 354 . . . . . . . . . . Explosions . | . . . . . . . . . . . . . Melee 2405 | . . 50 419 382 159 . . . 1153 188 54 . Ramming 190 | . 7 3 . 42 . . . 138 . . . . Kinetic 1156 | 11 416 612 . . 32 . . 16 . . 69 . Thermal 467 | . 294 173 . . . . . . . . . . Explosive . | . . . . . . . . . . . . . Electromagnetic . | . . . . . . . . . . . . . Impact 266 | . . 50 216 . . . . . . . . . Slashing 2139 | . . . 203 382 159 . . . 1153 188 54 . Piercing . | . . . . . . . . . . . . . Highest Corruption 11 | . 3 . 1 3 . . . 5 11 . . . Average Corruption 2 | . 2 . 1 2 . . . 5 9 . . . Corruption Purged 2 | . . . . . . . . . 2 . . . Corruption Blocked . | . . . . . . . . . . . . . Effects 21 | . 16 . . . . . . 3 2 . . . Message Errors 4 | . 3 . . . . . . . 1 . . . Matter Fused 6 | . 5 . . . . . . 1 . . . . Heat Flow Errors 3 | . 3 . . . . . . . . . . . Energy Discharges 4 | . 4 . . . . . . . . . . . Data Loss (minor) 2 | . 1 . . . . . . 1 . . . . Misfires 1 | . . . . . . . . 1 . . . . Misdirections 1 | . . . . . . . . . 1 . . . Overload Shots . | . . . . . . . . . . . . . Overflow Damage 821 | . . . 239 107 41 . . . 364 70 . . Projectiles . | . . . . . . . . . . . . . Explosions 180 | . . . 63 . . . . . 117 . . . Melee 641 | . . . 176 107 41 . . . 247 70 . . Knockbacks 8 | . . 8 . . . . . . . . . . Impact . | . . . . . . . . . . . . . Kinetic 6 | . . 6 . . . . . . . . . . Secondary 2 | . . 2 . . . . . . . . . . Self-Inflicted Damage 457 | . 3 1 170 21 . . . 68 194 . . . Shots 5 | . . . 3 . . . . . 2 . . . Rammed 6 | . 1 1 . 1 . . . 3 . . . . Targets Rammed 6 | . 1 1 . 1 . . . 3 . . . . Kicked . | . . . . . . . . . . . . . Crushed . | . . . . . . . . . . . . . Highest Temperature 308 | . 232 308 . 4 7 . 7 106 7 . . 4 Average Temperature 70 | . 88 66 . 4 6 . 7 46 4 . . 4 Received Heat Transfer 717 | . 264 174 . 42 54 . . 27 81 12 . 63 Effects 4 | . 1 3 . . . . . . . . . . Energy Bleed 2 | . 1 1 . . . . . . . . . . Interference 2 | . . 2 . . . . . . . . . . Siege Activations . | . . . . . . . . . . . . . Martial Activations . | . . . . . . . . . . . . . Shielding Activations . | . . . . . . . . . . . . . Robots Disrupted . | . . . . . . . . . . . . . Combat Hostiles . | . . . . . . . . . . . . . Robots Corrupted 3 | . . . 2 1 . . . . . . . . Combat Hostiles . | . . . . . . . . . . . . . Parts Fried 3 | . . . 2 1 . . . . . . . . Impact Corruptions 5 | . . . 3 2 . . . . . . . . Robots Melted . | . . . . . . . . . . . . . Combat Hostiles . | . . . . . . . . . . . . . Parts Melted 2 | . 1 1 . . . . . . . . . . Heat Transferred 1096 | . 675 421 . . . . . . . . . . Parts Sabotaged . | . . . . . . . . . . . . . Parts Stolen . | . . . . . . . . . . . . . Parts Stripped . | . . . . . . . . . . . . . Power Chain Reactions . | . . . . . . . . . . . . . Alert | -11 -10 -9 -8 -7 -6 -6 -6 -5 -5 -4 -4 -4 ------- Run | Yrd Mat Mat Mat Fac Fac Low Dat Pro Fac Fac Upp Upp Maximum Alert Level 2 | . 1 1 . . . . . . 2 1 . . Low Security (%) 77 | 100 86 73 100 100 100 . . . . 67 . . Level 1 12 | . 13 26 . . . . . . 8 32 . . Level 2 10 | . . . . . . . . . 91 . . . Level 3 . | . . . . . . . . . . . . . Level 4 . | . . . . . . . . . . . . . Level 5 . | . . . . . . . . . . . . . High Security . | . . . . . . . . . . . . . Max Security . | . . . . . . . . . . . . . Peak Influence 556 | 5 249 272 126 56 84 . . . 556 216 . . Initial 462 | . . 100 107 56 . . . . 462 188 . . Average 126 | . 74 153 67 9 6 . . . 470 188 . . Influence Increases 3092 | 5 540 729 269 53 185 . . 40 859 97 180 135 Destroy 0b10 Robot/C 660 | . 340 320 . . . . . . . . . . Destroy 0b10 Robot/NC 150 | 5 5 20 20 25 10 . . 10 45 10 . . Destroy Leader 160 | . 70 76 6 2 . . . . 6 . . . Successful Hack 124 | . 5 19 36 18 14 . . . 23 9 . . Disable Machine 225 | . . . 60 . . . . . 135 30 . . Destroy Structure 168 | . . 9 42 8 11 . . . 80 18 . . Advance Influence 450 | . . . . . . . . . 450 . . . Partial Spotted 255 | . . 120 60 . 15 . . . 30 30 . . Lose Combat Pursuer 900 | . 120 165 45 . 135 . . 30 90 . 180 135 Influence Decreases 2994 | 5 303 711 398 179 162 9 14 20 494 327 293 79 Entered New Map 650 | . . 137 148 70 . 9 14 . 8 197 58 9 Time Decay 1705 | 5 253 404 230 99 78 . . 15 246 110 235 30 Search Patrol Dispatched 200 | . . 100 . . . . . . 100 . . . Lost Part 355 | . 50 70 20 10 . . . 5 140 20 . 40 Purge Threat 84 | . . . . . 84 . . . . . . . Squads Dispatched 17 | . 4 4 3 1 2 . . . 3 . . . Investigation 6 | . 1 3 1 . . . . . 1 . . . Extermination 3 | . . . . 1 1 . . . 1 . . . Reinforcement 8 | . 3 1 2 . 1 . . . 1 . . . Assault . | . . . . . . . . . . . . . Garrison . | . . . . . . . . . . . . . Intercept . | . . . . . . . . . . . . . Searches Triggered 2 | . . 1 . . . . . . 1 . . . Data Miner Redirects 1 | . . . . . . . . . 1 . . . Construction Impeded . | . . . . . . . . . . . . . Haulers Reinforced . | . . . . . . . . . . . . . Active Scanning Responses . | . . . . . . . . . . . . . Cargo Convoy Interrupts . | . . . . . . . . . . . . . Stealth | -11 -10 -9 -8 -7 -6 -6 -6 -5 -5 -4 -4 -4 --------- Run | Yrd Mat Mat Mat Fac Fac Low Dat Pro Fac Fac Upp Upp Distress Signals 9 | . 2 4 2 . 1 . . . . . . . Communications Jammed . | . . . . . . . . . . . . . Distress Signals . | . . . . . . . . . . . . . Times Spotted 177 | . 35 44 14 3 16 . . 10 13 5 14 23 Peak Tracking Total 14 | . 7 10 6 2 6 . . 7 6 5 3 14 Tactical Retreats 35 | . 6 8 3 . 4 . . 2 3 . 6 3 Traps | -11 -10 -9 -8 -7 -6 -6 -6 -5 -5 -4 -4 -4 ------- Run | Yrd Mat Mat Mat Fac Fac Low Dat Pro Fac Fac Upp Upp Traps Triggered 6 | . 2 . . . . . . 1 3 . . . Indirectly . | . . . . . . . . . . . . . Trap Hack Attempts . | . . . . . . . . . . . . . Triggered . | . . . . . . . . . . . . . Disarmed . | . . . . . . . . . . . . . Reprogrammed . | . . . . . . . . . . . . . Reused . | . . . . . . . . . . . . . Traps Extracted . | . . . . . . . . . . . . . Installed . | . . . . . . . . . . . . . Triggered . | . . . . . . . . . . . . . Machines | -11 -10 -9 -8 -7 -6 -6 -6 -5 -5 -4 -4 -4 ---------- Run | Yrd Mat Mat Mat Fac Fac Low Dat Pro Fac Fac Upp Upp Machines Disabled 15 | . . . 4 . . . . . 9 2 . . Max in Single Turn 3 | . . . 3 . . . . . 2 1 . . Machines Repaired . | . . . . . . . . . . . . . Machines Dismantled . | . . . . . . . . . . . . . Machines Sabotaged . | . . . . . . . . . . . . . Overloaded Fab Kills . | . . . . . . . . . . . . . Hacking | -11 -10 -9 -8 -7 -6 -6 -6 -5 -5 -4 -4 -4 --------- Run | Yrd Mat Mat Mat Fac Fac Low Dat Pro Fac Fac Upp Upp Machines Accessed 46 | . 7 11 6 4 4 . 4 . 6 3 1 . Terminals 27 | . 5 6 5 3 3 . . . 3 2 . . Fabricators . | . . . . . . . . . . . . . Repair Stations 6 | . 1 2 . 1 . . . . 1 1 . . Recycling Units 3 | . 1 1 . . 1 . . . . . . . Scanalyzers 3 | . . 2 1 . . . . . . . . . Garrison Access 2 | . . . . . . . . . 2 . . . Total Hacks 151 | . 22 42 19 9 8 . 28 . 15 7 1 . Successful 87 | . 11 22 10 5 3 . 28 . 3 4 1 . Failed 63 | . 11 19 9 4 5 . . . 12 3 . . Catastrophic 9 | . 1 2 3 . 1 . . . 2 . . . Database Lockouts 1 | . . 1 . . . . . . . . . . Manual 63 | . 14 13 15 5 6 . 2 . 5 2 1 . Terminals 69 | . 13 15 16 7 6 . . . 7 5 . . Fabricators . | . . . . . . . . . . . . . Repair Stations 34 | . 7 19 . 2 . . . . 4 2 . . Recycling Units 6 | . 2 2 . . 2 . . . . . . . Scanalyzers 9 | . . 6 3 . . . . . . . . . Garrison Access 4 | . . . . . . . . . 4 . . . Terminal Hacks 41 | . . 2 5 1 1 . 28 . 1 2 1 . Record 13 | . . . . 1 . . 11 . . 1 . . Part Schematic 10 | . . . . . . . 10 . . . . . Robot Schematic 4 | . . . . . . . 4 . . . . . Prototype ID Bank 3 | . . . . . . . 3 . . . . . Open Door 1 | . . . . . . . . . . . 1 . Open DSF 2 | . . . . . . . . . 1 1 . . Level Access Points 2 | . . 1 1 . . . . . . . . . Branch Access Points 1 | . . . 1 . . . . . . . . . Emergency Access Points 1 | . . . 1 . . . . . . . . . Alert Level 1 | . . . 1 . . . . . . . . . Unreport Threat 1 | . . . . . 1 . . . . . . . Maintenance Status 2 | . . 1 1 . . . . . . . . . Fabricator Hacks . | . . . . . . . . . . . . . Repair Station Hacks 22 | . 6 13 . 2 . . . . 1 . . . Scan Component 11 | . 3 6 . 1 . . . . 1 . . . Repair 9 | . 3 5 . 1 . . . . . . . . Refit 2 | . . 2 . . . . . . . . . . Recycling Unit Hacks 3 | . . 2 . . 1 . . . . . . . Report Inventory 2 | . . 1 . . 1 . . . . . . . Retrieve Components 1 | . . 1 . . . . . . . . . . Scanalyzer 6 | . . 3 3 . . . . . . . . . Insert Component 1 | . . 1 . . . . . . . . . . Analyze 1 | . . 1 . . . . . . . . . . Retrieve Study 4 | . . 1 3 . . . . . . . . . Garrison Access Hacks . | . . . . . . . . . . . . . Unauthorized Hacks 13 | . 3 2 2 2 1 . . . 1 2 . . Terminals 12 | . 3 2 2 2 1 . . . . 2 . . Assimilate 2 | . 1 . . . . . . . . 1 . . Botnet 10 | . 2 2 2 2 1 . . . . 1 . . Fabricators . | . . . . . . . . . . . . . Repair Stations . | . . . . . . . . . . . . . Recycling Units . | . . . . . . . . . . . . . Scanalyzers . | . . . . . . . . . . . . . Garrison Access 1 | . . . . . . . . . 1 . . . Reprogram 1 | . . . . . . . . . 1 . . . Data Cores Recovered 1 | . . . . 1 . . . . . . . . Used 1 | . . . . 1 . . . . . . . . Hacking Detections 37 | . 7 9 6 4 4 . . . 4 3 . . Full Trace Events 7 | . 1 4 1 . . . . . 1 . . . Feedback Events . | . . . . . . . . . . . . . Feedback Blocked . | . . . . . . . . . . . . . Robot Schematics Acquired 4 | . . . . . . . 4 . . . . . Robots Built . | . . . . . . . . . . . . . Authchips . | . . . . . . . . . . . . . Time . | . . . . . . . . . . . . . Total Robot Build Rating . | . . . . . . . . . . . . . Part Schematics Acquired 11 | . . 1 . . . . 10 . . . . . Parts Built . | . . . . . . . . . . . . . Authchips . | . . . . . . . . . . . . . Time . | . . . . . . . . . . . . . Total Part Build Rating . | . . . . . . . . . . . . . Part Studies Acquired 4 | . . 1 3 . . . . . . . . . Parts Repaired 9 | . 3 5 . 1 . . . . . . . . Time 294 | . 78 165 . 51 . . . . . . . . Parts Recycled . | . . . . . . . . . . . . . Recycled Matter . | . . . . . . . . . . . . . Retrieved Matter . | . . . . . . . . . . . . . Retrieved Components 2 | . . 2 . . . . . . . . . . Parts Scanalyzed 1 | . . 1 . . . . . . . . . . Part Schematics Acquired 1 | . . 1 . . . . . . . . . . Parts Damaged . | . . . . . . . . . . . . . Bothacking | -11 -10 -9 -8 -7 -6 -6 -6 -5 -5 -4 -4 -4 ------------ Run | Yrd Mat Mat Mat Fac Fac Low Dat Pro Fac Fac Upp Upp Used RIF Installer . | . . . . . . . . . . . . . Robots Hacked . | . . . . . . . . . . . . . Non-combat . | . . . . . . . . . . . . . Combat . | . . . . . . . . . . . . . Robot Hacks Applied . | . . . . . . . . . . . . . Relay Couplers Released . | . . . . . . . . . . . . . Fabnet Peak Effective % . | . . . . . . . . . . . . . Robots Rewired . | . . . . . . . . . . . . . Allies Hacked . | . . . . . . . . . . . . . Hacks Repelled . | . . . . . . . . . . . . . Allies | -11 -10 -9 -8 -7 -6 -6 -6 -5 -5 -4 -4 -4 -------- Run | Yrd Mat Mat Mat Fac Fac Low Dat Pro Fac Fac Upp Upp Total Allies 1 | . . . . . . . . . . . . 1 Largest Group 1 | . . . . . . . . . . . . 1 Highest-Rated Group 167 | . . . . . . . . . . . . 167 Highest-Rated Ally 167 | . . . . . . . . . . . . 167 Total Orders . | . . . . . . . . . . . . . Ally Attacks . | . . . . . . . . . . . . . Total Damage . | . . . . . . . . . . . . . Kills . | . . . . . . . . . . . . . Allies Corrupted . | . . . . . . . . . . . . . Allies Melted . | . . . . . . . . . . . . . Intel | -11 -10 -9 -8 -7 -6 -6 -6 -5 -5 -4 -4 -4 ------- Run | Yrd Mat Mat Mat Fac Fac Low Dat Pro Fac Fac Upp Upp Active Infowar (turns) 4096 | 7 739 . 398 485 432 15 27 92 525 234 1088 54 Optics 2947 | . . . . 480 432 15 27 92 525 234 1088 54 Sensors 1669 | . . . 398 485 418 . . . 368 . . . Terrain 48 | . . . . . . . . . 48 . . . Seismic 746 | 7 739 . . . . . . . . . . . Robot Analysis Total . | . . . . . . . . . . . . . Derelict Logs Recovered 4 | . . . . . . . . 2 . . 2 . Drone Launches . | . . . . . . . . . . . . . Drone Recoveries . | . . . . . . . . . . . . . Exploration | -11 -10 -9 -8 -7 -6 -6 -6 -5 -5 -4 -4 -4 ------------- Run | Yrd Mat Mat Mat Fac Fac Low Dat Pro Fac Fac Upp Upp Turns Passed 5936 | 46 1472 967 492 485 432 15 27 92 525 234 1088 61 Spaces Moved 7951 | 39 892 1091 720 741 889 56 102 313 817 459 1713 119 Core 124 | 2 . 1 . . . . . . . 11 . 110 Treads . | . . . . . . . . . . . . . Legs . | . . . . . . . . . . . . . Wheels 929 | 37 892 . . . . . . . . . . . Hover . | . . . . . . . . . . . . . Flight 6898 | . . 1090 720 741 889 56 102 313 817 448 1713 9 Fastest Speed 26 | 50 80 31 27 28 26 26 26 26 26 40 40 40 Average Speed 40 | 78 80 32 29 44 26 26 26 26 31 40 41 49 Slowest Speed 150 | 80 80 150 101 98 26 26 26 26 107 50 44 50 Overloaded Moves . | . . . . . . . . . . . . . Propulsion Burnouts . | . . . . . . . . . . . . . Robots Hopped 23 | . . 8 3 5 3 . . 2 . 1 1 . Potential Cave-ins 10 | . . 2 . . 3 . . . . . 5 . Cave-ins Triggered 1 | . . . . . . . . . 1 . . . Exploration Rate (%) 42 | 4 88 66 55 14 21 11 79 57 23 10 92 27 Regions Visited 12 Branch Regions 5 Pre-discovered Areas 1 | . . . . . . . 1 . . . . . Known Exits Taken 3 | . . 1 1 . . . . 1 . . . . Unknown Exits Taken 9 | 1 1 . . 1 1 1 1 . 1 1 1 . Scrap Searched 7 | . . . . . . . . 3 . . 3 1 Spaces Dug 80 | . . 11 9 8 14 . . . 11 8 19 . Terrain Destroyed 160 | . . 11 47 8 14 . . . 52 8 20 . Melee 77 | . . 11 9 8 14 . . . 11 8 16 . Projectile 4 | . . . . . . . . . . . 4 . AOE 79 | . . . 38 . . . . . 41 . . . Terrain Rammed . | . . . . . . . . . . . . . Walls Destroyed . | . . . . . . . . . . . . . Machines Disabled . | . . . . . . . . . . . . . Actions | -11 -10 -9 -8 -7 -6 -6 -6 -5 -5 -4 -4 -4 --------- Run | Yrd Mat Mat Mat Fac Fac Low Dat Pro Fac Fac Upp Upp Total 10187 | 48 1547 1558 965 868 1055 55 101 319 1022 483 2043 123 Wait 1686 | . 561 304 194 100 130 . . . 111 . 286 . Move 7894 | 38 891 1074 713 730 882 55 101 309 816 456 1710 119 Hop 22 | . . 8 3 5 3 . . 1 . 1 1 . Pick Up 66 | 2 13 23 6 4 4 . . 2 7 4 1 . Fast Attach 51 | 7 6 5 2 5 2 . . . 19 1 4 . Attach 30 | . 2 14 1 2 3 . . . 4 2 2 . Detach 18 | . . 7 1 . 2 . . . 5 . 2 1 Swap 62 | . 6 31 15 2 5 . . 1 2 . . . Drop 70 | . 9 20 10 4 4 . . 2 15 3 . 3 Fire 137 | 1 58 55 . . 2 . . 1 . . 20 . Melee 145 | . . 16 20 15 18 . . . 43 16 17 . Ram 6 | . 1 1 . 1 . . . 3 . . . . Kick . | . . . . . . . . . . . . . Crush . | . . . . . . . . . . . . . Escape Stasis . | . . . . . . . . . . . . . Rewire . | . . . . . . . . . . . . . Trap . | . . . . . . . . . . . . . Miscellaneous . | . . . . . . . . . . . . . Route ------- -11/Scrapyard -10/Materials (discovered 3 exits: *Mat x2 / [*Min]) -9/Materials (discovered 3 exits: *Mat x3) -8/Materials (discovered 3 exits: *Fac x3) -7/Factory (discovered 3 exits: *Fac / [*Low x2]) -6/Factory -6/Lower Caves -6/Data Miner -5/Proximity Caves -5/Factory (discovered 2 exits: *Fac / [*Upp]) -4/Factory -4/Upper Caves -4/Upper Caves History --------- Turn | Location | Event 13 | -11/Scrapyard | Discovered new exit (range 15) 47 | -11/Scrapyard | Entered Materials 308 | -10/Materials | Build established: Mutant 643 | -10/Materials | Discovered new exit (range 3) 828 | -10/Materials | Lost 4 parts (1p1n1u1w) 940 | -10/Materials | Discovered new exit (range 13) 1114 | -10/Materials | Repaired Lgt. Armor Plating 1141 | -10/Materials | Repaired Wheel 1168 | -10/Materials | Repaired Ion Engine 1204 | -10/Materials | Core integrity fell below 50% 1218 | -10/Materials | Discovered new exit (range 16) 1519 | -10/Materials | Entered another Materials area 1519 | -9/Materials | Evolved 2 slots: Propulsion x2 1677 | -9/Materials | Repaired Flight Unit 1714 | -9/Materials | Repaired Broken Flight Unit 1743 | -9/Materials | Repaired Med. Storage Unit 2087 | -9/Materials | Repaired Imp. Flight Unit 2115 | -9/Materials | Repaired Lgt. Cannon 2206 | -9/Materials | Identified exit to Materials 2319 | -9/Materials | Search patrols dispatched 2388 | -9/Materials | Destroyed 8 combat bots 2390 | -9/Materials | Lost 4 parts (1p1u2w) 2408 | -9/Materials | Central database locked down 2426 | -9/Materials | Build established: Sprinter 2486 | -9/Materials | Entered another Materials area 2486 | -8/Materials | Evolved 2 slots: Power x1, Utility x1 2776 | -8/Materials | Discovered new exit (range 5) 2837 | -8/Materials | Identified exit to Factory 2978 | -8/Materials | Entered Factory 2978 | -7/Factory | Evolved 2 slots: Power x1, Utility x1 3084 | -7/Factory | Repaired Imp. Flight Unit 3220 | -7/Factory | Discovered new exit (range 17) 3225 | -7/Factory | Discovered new exit (range 18) 3351 | -7/Factory | Discovered new exit (range 19) 3463 | -7/Factory | Entered another Factory area 3463 | -6/Factory | Evolved 2 slots: Propulsion x1, Utility x1 3872 | -6/Factory | Discovered new exit (range 8) 3895 | -6/Factory | Entered Lower Caves 3899 | -6/Lower Caves | A Derelict revealed a hidden shortcut to meet someone special 3910 | -6/Lower Caves | Entered Data Miner 3910 | -6/Data Miner | Discovered new exit (range 6) 3914 | -6/Data Miner | Met Data Miner 3921 | -6/Data Miner | Learned location of Section 7 (-3) 3921 | -6/Data Miner | Acquired the access code to Warlord's prototype stash 3927 | -6/Data Miner | Received God Mode back door access code from Data Miner 3937 | -6/Data Miner | Entered Proximity Caves 3939 | -5/Proximity Caves | Spotter reported a threat 3940 | -5/Proximity Caves | Spotter reported a threat 3980 | -5/Proximity Caves | Identified exit to Factory 3993 | -5/Proximity Caves | Spotter reported a threat 3995 | -5/Proximity Caves | Attracted the attention of an 0b10 checkpoint 4029 | -5/Proximity Caves | Entered Factory 4029 | -5/Factory | Evolved 2 slots: Utility x2 4053 | -5/Factory | Discovered new exit (range 11) 4185 | -5/Factory | Lost 5 parts (1n3u1w) 4216 | -5/Factory | Identified exit to DSF 4329 | -5/Factory | Search patrols dispatched 4426 | -5/Factory | Incoming investigation squad redirected 4480 | -5/Factory | Crushed by falling debris 4480 | -5/Factory | System corruption reached 10% 4511 | -5/Factory | Lost 5 parts (1p2n2u) 4540 | -5/Factory | Discovered new exit (range 20) 4554 | -5/Factory | Entered another Factory area 4554 | -4/Factory | Evolved 2 slots: Power x1, Utility x1 4780 | -4/Factory | Build established: Mutant 4785 | -4/Factory | Discovered new exit (range 8) 4788 | -4/Factory | Entered Upper Caves 4937 | -4/Upper Caves | Encountered a Warlord checkpoint 5103 | -4/Upper Caves | Attracted the attention of an 0b10 checkpoint 5475 | -4/Upper Caves | Found DCF Scrap (13 items) 5826 | -4/Upper Caves | Lost 3 allies 5841 | -4/Upper Caves | Discovered new exit (range 12) 5876 | -4/Upper Caves | Entered another Upper Caves area 5890 | -4/Upper Caves | Attracted the attention of an 0b10 checkpoint 5907 | -4/Upper Caves | Core integrity fell below 50% 5913 | -4/Upper Caves | Lost 3 parts (1p2n) 5929 | -4/Upper Caves | Core integrity fell below 20% 5937 | -4/Upper Caves | Destroyed by S-27 Virus with Autogun Last Messages --------------- GOAL=ESCAPE 05877_ Mak. Flight Unit destroyed. 05877_ Dropped Hvy. Battle Rifle. 05877_ Dropped Com. Battery. 05878_ Dropped Imp. Shield Generator. 05879_ Fusion Compressor destroyed. 05882_ Impulse Thruster destroyed. 05889_ Slug penetrates Wall. 05890_ Y-64 Sentinel: "INTERCEPTING UNREGISTERED DERELICT." 05902_ S-27 Virus destroyed. 05918_ Searching scrap... 05918_ Found Hcp. Storage Unit. 05918_ Found Imp. Component Analysis Suite. 05918_ Found Power Sword. 05918_ Found Disruptor Cannon. 05918_ Found 36 Matter. A strange signal echoes through the caves. 05930_ S-27 Virus destroyed. 05930_ Adv. Visual Processing Unit destroyed. [Achievement: This Is Interesting...] Map ----- +----------------------------------------------------+ | ?????????????????????????????????????????????????? | | ?????????????????????????????????????????????????? | | ?????????????????????????????????????????????????? | | ?????????????????????????????????????????????????? | | ?????????????????????????????????????????????????? | | ?????????????????????????????????????????????????? | | ?????????????????????????????????????????????????? | | ?????????????????????????????????????????????????? | | ?????????????????????????????????????????????????? | | ?????????????????????????????????????????????????? | | ?????????????????????????????????????????????????? | | ?????????????????????????????????????????????????? | | ?????????????????????????????????????????????????? | | ?????????????????????????????????????????????????? | | ?????????????????????????????????????????????????? | | ?????????????????????????????????????????????????? | | ????????????????####?????????????????????????????? | | ???????????????## #?????????????????????????????? | | ??????????????## #?????????????????????????????? | | ??????????????# ##????????????????? ??????????? | | ????????####### ##????????????## ??????????? | | ????????# ###???????? #?????????? | | ????????# ###?#### ??????????? | | ????????# s ## ??????????? | | ????????## ## ???????????? | | ?????????# ###### @ ##### ?????????????? | | ?????????# ##???# ##?????????????????????? | | ?????##### #?# ##?? ???????????????????? | | ????## ### #??? ???????????????????? | | ???## ##?# #??? ???????????????????? | | ??## #??### ??? ???????????????????? | | ### ##???## ??? ???????????????????? | | # ##???## ?? ???????????????????? | | #????## ?? ???????????????????# | | #??????##?? ###????????????#### | | % ######????## ####????????# | | ###= #??### ## ##?????# | | #?# #??# ## ###### | | # ##?# " " ##?# # #?# | | ## #??# "" """ ##?# #??# | | ?#### #### "" """" ### ##### #?? | | ????## " "" #???? | | ?????## !/] ### # #?????? | | ??????# ####%! #?# # # #### #####?? | | ???? #??### ### #?# # ##??## ##? | | ? ????# #?## # # #????# ## | | ????## #?##### # ###### # | | #### ??? #????# # # | | ????## ?? #???##### | | ???????######## #???????####### | +----------------------------------------------------+ Best States ------------- Heat Dissipation 64 Energy Generation 31 Energy Capacity 355 Matter Stores 318 Matter Capacity 450 Sight Range 20 Robot Scan Range 15 Terrain Scan Range 16 Terrain Scan Density 10 Additional Mass Support 6 Armor Coverage 150 Core Shielding 20 Propulsion Shielding 66 Evasion (%) 64 Kinecelleration 40 Offensive Hacking 10 Defensive Hacking 10 Item Schematics ----------------- Imp. Flight Unit | -9/Materials | Scanalyzed Combat Drone Bay | -6/Data Miner | Free Lgt. Regenerative Plating | -6/Data Miner | Free Exp. Cesium-ion Thruster | -6/Data Miner | Free Prc. Energy Filter | -6/Data Miner | Free Enh. Force Rifle | -6/Data Miner | Free Impulse Thruster | -6/Data Miner | Free Imp. Force Booster | -6/Data Miner | Free Phase Gun | -6/Data Miner | Free Antigrav Array | -6/Data Miner | Free Biometal Leg | -6/Data Miner | Free Robot Schematics ------------------ G-50 Soldier | -6/Data Miner | Free A-15 Conveyor | -6/Data Miner | Free S-27 Virus | -6/Data Miner | Free B-60 Warrior | -6/Data Miner | Free Fabricated ------------ Nothing Repaired ---------- Lgt. Armor Plating | 11% | -10/Materials Wheel | 60% | -10/Materials Ion Engine | 53% | -10/Materials Flight Unit | 20% | -9/Materials Flight Unit | 55% | -9/Materials | Broken Med. Storage Unit | 68% | -9/Materials Imp. Flight Unit | 70% | -9/Materials Lgt. Cannon | 65% | -9/Materials Imp. Flight Unit | 50% | -7/Factory Studied --------- Flight Unit | -9/Materials | Hacked Lgt. Ion Engine | -8/Materials | Hacked Autogun | -8/Materials | Hacked Particle Cannon | -8/Materials | Hacked Alien Tech Used ----------------- None Achievements -------------- Fitting Room I'm Back, Baby! Item+ Look Less Dangerous Next Time Suspicious The Oracle This Is Interesting... Watch This! Challenges ------------ None Game ------ Seed HugeNavigationTreads Manual? 0 Play Time 04:01:33 Cumulative 63.0 hours Start 2026.02.07 @ 22:14:17 End 2026.02.08 @ 03:55:13 Sessions 5 Manual Loads 0 Difficulty Rogue Special Mode None Game No. 47 Rogue 47 Adventurer 0 Explorer 0 Win Type - Total 0 Types 0/0/0/0/0/0/0/0/0/0 Lore% 25 Gallery% 30 Achievement% 22 Wizard Run 0 Options --------- Layout 0 ASCII 0 Keyboard 1 Movement Vi Keybinds 0 Fullscreen 2 Font 36/X11 Map View 76x50 Zoom Use 0% Tactical HUD 1 Map Filters NONE Filters NONE Steam 1 RUN: 81760949-6b60-45b7-916a-c74d82ee3d01